bitfinex/quotes_SOLUSD_20240626
["timestamp","ask_amount","ask_price","bid_price","bid_amount"]
[1719369662578,28.30924262,139.31,139.24,26.0]
[1719369663311,28.30924262,139.31,139.25,7.1811]
[1719369663615,7.1792,139.29,139.24,17.9541]
[1719369663772,7.1792,139.29,139.23,33.1822]
[1719369664895,7.1792,139.29,139.23,7.1822]
[1719369665095,7.1792,139.29,139.22,33.1828]
[1719369665273,7.1799,139.28,139.22,7.1828]
[1719369665471,7.1799,139.28,139.22,33.1828]
[1719369666008,7.1799,139.28,139.21,25.9995255]
[1719369666306,7.1799,139.28,139.22,26.0]
[1719369667598,0.17,139.29,139.21,0.8588255]
[1719369668105,7.1803,139.27,139.21,0.8588255]
[1719369668994,7.1819,139.24,139.21,0.8588255]
[1719369669194,16.3309,139.26,139.21,0.8588255]
[1719369669513,7.1822,139.24,139.21,0.8588255]
[1719369669695,7.1824,139.23,139.21,0.8588255]
[1719369670217,8.71942082,139.25,139.21,0.8588255]
[1719369670903,0.34,139.25,139.21,0.8588255]
[1719369672317,7.1818,139.24,139.21,0.8588255]
[1719369674623,0.17,139.23,139.21,0.8588255]
[1719369674918,7.1828,139.22,139.21,0.8588255]
[1719369675112,7.5228,139.22,139.21,0.8588255]
[1719369675319,38.55932082,139.22,139.21,0.8588255]
[1719369675623,7.1848,139.19,139.1,43.9717]
[1719369676319,7.1848,139.19,139.13,7.1874]
[1719369676615,0.17,139.2,139.15,7.1864]
[1719369676819,0.17,139.2,139.1,57.5234]
[1719369676820,0.17,139.21,139.16,7.1859]
[1719369677015,265.7817,139.25,139.18,7.1845]
[1719369677199,265.7817,139.25,139.18,25.1468]
[1719369677607,258.6,139.25,139.15,17.9655]
[1719369677814,7.1835,139.21,139.15,25.1519]
[1719369678008,16.3418,139.2,139.12,17.9692]
[1719369678194,7.1845,139.19,139.13,7.1873]
[1719369678508,7.1845,139.19,139.12,25.1568]
[1719369678712,7.1845,139.19,139.13,7.1874]
[1719369680508,23.8658,139.2,139.13,7.1874]
[1719369680727,7.5245,139.19,139.13,7.1874]
[1719369681420,0.34,139.19,139.13,7.1874]
[1719369682212,0.34,139.19,139.09,17.9729]
[1719369682404,7.1858,139.17,139.1,7.1886]
[1719369682829,7.1858,139.17,139.11,7.1885]
[1719369682999,7.1858,139.17,139.1,7.189]
[1719369683324,7.1858,139.17,139.11,7.1884]
[1719369683522,7.1868,139.15,139.09,17.9729]
[1719369683736,18.3018,139.19,139.09,17.9729]
[1719369683737,7.186,139.16,139.09,17.9729]
[1719369683900,7.1856,139.17,139.1,7.1889]
[1719369684696,7.1856,139.17,139.11,7.1885]
[1719369686230,7.185,139.18,139.11,7.1885]
[1719369686400,0.34,139.17,139.11,7.1885]
[1719369687220,7.1861,139.16,139.09,17.9729]
[1719369687529,7.5255,139.17,139.1,7.1889]
[1719369692232,7.186,139.16,139.1,7.1889]
[1719369692432,7.186,139.16,139.09,25.1624]
[1719369692729,22.353,139.16,139.07,0.8588255]
[1719369692937,7.1875,139.13,139.07,0.8588255]
[1719369693610,7.187,139.14,139.07,0.8588255]
[1719369694011,7.5266,139.15,139.08,7.1899]
[1719369694615,7.187,139.14,139.08,7.1899]
[1719369696436,0.34,139.15,139.07,0.8588255]
[1719369696437,7.1885,139.12,139.07,0.8588255]
[1719369696636,0.34,139.15,139.07,0.8588255]
[1719369696943,7.1881,139.12,139.07,0.8588255]
[1719369697320,7.1876,139.13,139.07,0.8588255]
[1719369697640,7.1876,139.13,139.07,8.0493255]
[1719369698236,0.34,139.15,139.07,18.8345255]
[1719369698420,0.34,139.15,139.07,26.8588255]
[1719369698626,0.34,139.15,139.09,25.163]
[1719369699448,7.5265,139.15,139.09,25.163]
[1719369699618,22.353,139.16,139.1,7.1889]
[1719369699941,22.5423,139.2,139.12,7.188]
[1719369700111,7.1848,139.19,139.12,7.188]
[1719369700312,7.1859,139.17,139.11,17.971]
[1719369701243,7.186,139.16,139.1,7.1886]
[1719369702642,7.1856,139.17,139.1,7.1886]
[1719369703443,7.356,139.16,139.1,7.1886]
[1719369703625,7.186,139.16,139.1,7.1886]
[1719369703940,7.1856,139.17,139.1,7.1886]
[1719369704140,0.34,139.16,139.1,7.1886]
[1719369704640,7.526,139.16,139.1,7.1886]
[1719369706430,0.34,139.16,139.1,7.1886]
[1719369706620,7.5259,139.16,139.1,7.1886]
[1719369706820,7.5259,139.16,139.09,7.1894]
[1719369707643,7.5259,139.16,139.1,7.189]
[1719369709552,7.1873,139.14,139.08,17.9743]
[1719369709845,23.7682,139.15,139.08,25.1644]
[1719369710136,0.34,139.14,139.08,25.1644]
[1719369710329,7.5271,139.14,139.08,25.1642]
[1719369712464,0.34,139.14,139.08,25.1642]
[1719369712824,7.527,139.14,139.08,25.1642]
[1719369713648,7.527,139.14,139.08,17.9743]
[1719369715745,7.1875,139.13,139.08,17.9743]
[1719369716047,0.34,139.12,139.08,17.9743]
[1719369716435,0.34,139.12,139.07,8.0494255]
[1719369718455,0.34,139.12,139.07,0.8588255]
[1719369721170,22.3915,139.11,139.07,0.8588255]
[1719369721464,7.1901,139.08,139.07,0.8588255]
[1719369721765,7.5301,139.08,139.07,0.8588255]
[1719369721948,0.34,139.08,139.07,0.8588255]
[1719369722451,36.68474636,139.11,139.07,0.8588255]
[1719369722655,7.5292,139.1,139.07,0.8588255]
[1719369722856,0.34,139.1,139.07,0.8588255]
[1719369723938,7.5294,139.1,139.07,0.8588255]
[1719369724147,7.1896,139.09,139.07,0.8588255]
[1719369724344,7.5301,139.08,139.07,0.8588255]
[1719369724955,0.34,139.08,139.07,0.8588255]
[1719369725643,7.5301,139.08,139.07,0.8588255]
[1719369726552,0.34,139.08,139.07,0.8588255]
[1719369728768,7.5301,139.08,139.07,0.8588255]
[1719369729143,0.17,139.08,139.07,0.8588255]
[1719369729345,7.1896,139.09,139.07,0.8588255]
[1719369732670,7.5292,139.1,139.07,0.8588255]
[1719369732869,0.34,139.1,139.07,0.8588255]
[1719369733166,7.1901,139.08,139.07,0.8588255]
[1719369733885,7.1897,139.09,139.07,0.8588255]
[1719369734668,15.90854399,139.1,139.07,0.8588255]
[1719369735566,8.71934399,139.1,139.07,0.8588255]
[1719369735962,15.90844399,139.1,139.07,0.8588255]
[1719369736278,7.1896,139.09,139.07,0.8588255]
[1719369737484,15.90854399,139.1,139.07,0.8588255]
[1719369738088,8.37934399,139.1,139.07,0.8588255]
[1719369738395,8.37934399,139.14,139.07,0.8588255]
[1719369738559,7.1876,139.13,139.07,0.8588255]
[1719369738761,21.23638661,139.13,139.07,0.8588255]
[1719369738976,1.27499763,139.12,139.07,0.8588255]
[1719369739168,7.1894,139.1,139.07,0.8588255]
[1719369739481,8.37934399,139.12,139.07,0.8588255]
[1719369739786,0.17,139.11,139.07,0.8588255]
[1719369740289,7.1892,139.1,139.07,0.8588255]
[1719369740762,0.34,139.11,139.07,0.8588255]
[1719369741090,7.1892,139.1,139.07,0.8588255]
[1719369748093,7.5297,139.09,139.07,0.8588255]
[1719369748272,7.1901,139.08,139.07,0.8588255]
[1719369748472,7.3601,139.08,139.07,0.8588255]
[1719369750599,7.3601,139.08,139.07,0.8588255]
[1719369751176,0.17,139.08,139.07,0.8588255]
[1719369754099,15.56864399,139.1,139.07,0.8588255]
[1719369754403,8.37934399,139.1,139.07,0.8588255]
[1719369754585,15.56884399,139.1,139.07,0.8588255]
[1719369760384,8.37934399,139.1,139.07,0.8588255]
[1719369763385,7.1897,139.09,139.07,0.8588255]
[1719369764005,7.1901,139.08,139.07,0.8588255]
[1719369765189,7.1896,139.09,139.07,0.8588255]
[1719369766017,7.1901,139.08,139.07,0.8588255]
[1719369767815,7.1897,139.09,139.07,0.8588255]
[1719369769404,7.3601,139.08,139.07,0.8588255]
[1719369769582,7.5301,139.08,139.07,0.8588255]
[1719369772619,0.17,139.08,139.07,0.8588255]
[1719369772914,7.3601,139.08,139.07,0.8588255]
[1719369773987,7.5301,139.08,139.07,0.8588255]
[1719369781333,24.00764399,139.1,139.07,0.8588255]
[1719369781334,8.37934399,139.1,139.07,0.8588255]
[1719369781698,7.1882,139.12,139.07,0.8588255]
[1719369781899,8.37934399,139.13,139.08,7.19]
[1719369782123,7.188,139.12,139.07,0.8588255]
[1719369784027,7.1885,139.11,139.07,0.8588255]
[1719369785016,8.46319763,139.12,139.07,0.8588255]
[1719369785207,7.1886,139.11,139.07,0.8588255]
[1719369787532,8.46319763,139.12,139.07,0.8588255]
[1719369790911,1.27499763,139.12,139.07,0.8588255]
[1719369792334,1.27499763,139.12,139.08,7.1899]
[1719369793019,1.27499763,139.12,139.07,8.0492255]
[1719369795341,1.27499763,139.12,139.09,15.5251]
[1719369796144,8.46349763,139.12,139.09,15.5251]
[1719369797161,7.1886,139.11,139.09,15.5251]
[1719369797648,8.46319763,139.12,139.09,15.5251]
[1719369798440,8.46319763,139.12,139.07,0.8588255]
[1719369799648,7.1889,139.11,139.07,0.8588255]
[1719369802253,7.1891,139.1,139.07,0.8588255]
[1719369803226,7.3587,139.11,139.07,0.8588255]
[1719369803430,7.5287,139.11,139.07,0.8588255]
[1719369805955,0.34,139.11,139.07,0.8588255]
[1719369806254,7.1901,139.08,139.07,0.8588255]
[1719369806454,7.5301,139.08,139.07,0.8588255]
[1719369807957,0.17,139.08,139.07,0.8588255]
[1719369808159,0.34,139.09,139.07,0.8588255]
[1719369808363,7.5296,139.09,139.07,0.8588255]
[1719369808672,7.1901,139.08,139.07,0.8588255]
[1719369808836,7.5301,139.08,139.07,0.8588255]
[1719369809240,37.5301,139.08,139.07,0.8588255]
[1719369812449,30.0,139.08,139.07,0.8588255]
[1719369812963,37.1901,139.08,139.07,0.8588255]
[1719369813536,30.0,139.08,139.07,0.8588255]
[1719369815840,37.1901,139.08,139.07,0.8588255]
[1719369816463,7.1901,139.08,139.07,0.8588255]
[1719369818178,37.1901,139.08,139.07,0.8588255]
[1719369821772,37.5301,139.08,139.07,0.8588255]
[1719369822551,53.5165,139.08,139.07,0.8588255]
[1719369822751,60.62084636,139.08,139.07,0.8588255]
[1719369822953,7.1923,139.04,138.97,29.636]
[1719369823284,7.1933,139.02,138.97,22.4407]
[1719369827177,16.07546621,139.01,138.94,7.1971]
[1719369828053,30.0,139.0,138.94,7.1971]
[1719369829157,37.1942,139.0,138.94,7.1971]
[1719369829356,37.1942,139.0,138.93,42.4942255]
[1719369829655,7.1953,138.98,138.93,17.3025255]
[1719369830457,7.80585319,138.98,138.93,0.8588255]
[1719369830764,15.90686621,138.98,138.93,0.8588255]
[1719369831377,0.34,138.97,138.93,0.8588255]
[1719369831564,37.5358,138.97,138.93,0.8588255]
[1719369833085,30.34,138.97,138.93,0.8588255]
[1719369836282,38.14635319,138.97,138.93,0.8588255]
[1719369836460,46.24736621,138.97,138.93,0.8588255]
[1719369837264,62.64106621,138.97,138.93,0.8588255]
[1719369840464,7.1973,138.94,138.93,0.8588255]
[1719369840670,16.07886621,138.94,138.93,0.8588255]
[1719369840858,46.24886621,138.94,138.93,0.8588255]
[1719369841871,39.05156621,138.94,138.93,0.8588255]
[1719369842076,38.71156621,138.94,138.93,0.8588255]
[1719369843074,15.90886621,138.94,138.93,0.8588255]
[1719369843461,16.24886621,138.94,138.93,0.8588255]
[1719369845060,8.71156621,138.94,138.93,0.8588255]
[1719369845875,7.1958,138.97,138.93,0.8588255]
[1719369846181,21.57640883,138.98,138.93,0.8588255]
[1719369847294,7.1958,138.97,138.93,0.8588255]
[1719369847598,21.57680883,138.97,138.93,0.8588255]
[1719369848193,7.1964,138.96,138.93,0.8588255]
[1719369848400,21.57740883,138.96,138.93,0.8588255]
[1719369851984,14.38100883,138.96,138.93,0.8588255]
[1719369852312,0.34,138.95,138.93,0.8588255]
[1719369853311,14.38100883,138.96,138.93,0.8588255]
[1719369853685,21.57730883,138.96,138.93,0.8588255]
[1719369854001,14.38100883,138.96,138.93,0.8588255]
[1719369854814,21.57740883,138.96,138.93,0.8588255]
[1719369856009,7.1968,138.95,138.93,0.8588255]
[1719369856807,7.1973,138.94,138.93,0.8588255]
[1719369857301,7.3673,138.94,138.93,0.8588255]
[1719369857499,7.5373,138.94,138.93,0.8588255]
[1719369859000,21.57790883,138.95,138.93,0.8588255]
[1719369860916,7.1973,138.94,138.93,0.8588255]
[1719369865731,14.38100883,138.95,138.93,0.8588255]
[1719369865910,5.66944262,138.95,138.93,0.8588255]
[1719369867534,14.38100883,138.95,138.93,0.8588255]
[1719369867910,7.1973,138.94,138.93,0.8588255]
[1719369869904,7.3673,138.94,138.93,0.8588255]
[1719369873037,21.57790883,138.95,138.93,0.8588255]
[1719369876436,7.1973,138.94,138.93,0.8588255]
[1719369876940,7.3673,138.94,138.93,0.8588255]
[1719369877146,7.5373,138.94,138.93,0.8588255]
[1719369877522,16.24886621,138.94,138.93,0.8588255]
[1719369888354,36.24886621,138.94,138.93,0.8588255]
[1719369889351,17.9946,138.93,138.84,22.2043]
[1719369889532,20.34,138.92,138.84,22.2043]
[1719369889728,8.71156621,138.91,138.84,22.2043]
[1719369889923,7.2001,138.89,138.84,22.2043]
[1719369890123,0.17,138.9,138.84,29.4064]
[1719369890324,0.34,138.9,138.84,29.4064]
[1719369890853,7.5395,138.9,138.84,22.2043]
[1719369891228,7.1999,138.89,138.84,22.2043]
[1719369893564,7.2005,138.88,138.84,22.2043]
[1719369894541,7.2005,138.88,138.82,7.2034]
[1719369896466,7.2001,138.89,138.82,7.2034]
[1719369898063,9.05156621,138.9,138.81,7.2039]
[1719369898064,7.5406,138.88,138.81,7.2039]
[1719369898248,7.2005,138.88,138.8,65.739]
[1719369898447,7.2005,138.88,138.81,7.2037]
[1719369900259,7.3711,138.87,138.8,46.9434]
[1719369901269,26.88436621,138.87,138.79,0.8588255]
[1719369901567,7.2022,138.85,138.79,8.0638255]
[1719369901749,7.3716,138.86,138.79,8.0638255]
[1719369902141,16.08266621,138.87,138.8,7.2044]
[1719369902340,8.88156621,138.87,138.79,0.8588255]
[1719369902648,7.2022,138.85,138.79,8.0638255]
[1719369902972,23.59569382,138.89,138.82,7.2032]
[1719369903145,0.17,138.88,138.82,25.2118]
[1719369903482,0.17,138.88,138.81,7.2039]
[1719369903773,8.88156621,138.88,138.81,7.2039]
[1719369903973,8.88156621,138.88,138.8,23.3811]
[1719369903974,7.2009,138.87,138.8,23.3811]
[1719369904756,0.34,138.86,138.8,23.3811]
[1719369904952,7.5416,138.86,138.8,23.3811]
[1719369905163,7.5416,138.86,138.8,16.1767]
[1719369905977,7.2021,138.85,138.8,16.1767]
[1719369906160,7.2021,138.85,138.79,18.8705255]
[1719369907167,15.91366621,138.85,138.79,18.8705255]
[1719369909166,30.65566621,138.85,138.79,0.8588255]
[1719369909474,0.34,138.84,138.79,0.8588255]
[1719369909850,7.2031,138.83,138.79,0.8588255]
[1719369911168,16.25416621,138.84,138.79,0.8588255]
[1719369911967,8.71156621,138.83,138.79,0.8588255]
[1719369912274,7.3737,138.82,138.79,0.8588255]
[1719369912472,7.2046,138.8,138.79,0.8588255]
[1719369912655,7.5446,138.8,138.79,0.8588255]
[1719369912855,16.25616621,138.8,138.79,0.8588255]
[1719369913756,23.76539544,138.8,138.79,0.8588255]
[1719369916672,16.22079544,138.8,138.79,0.8588255]
[1719369916873,8.71156621,138.8,138.79,0.8588255]
[1719369917451,7.50744661,138.85,138.79,0.8588255]
[1719369917785,15.74346621,138.88,138.81,7.204]
[1719369918180,8.54256621,138.87,138.81,7.204]
[1719369918483,8.54256621,138.87,138.8,18.011]
[1719369918661,8.54256621,138.88,138.79,26.8588255]
[1719369918862,7.202,138.85,138.79,0.8588255]
[1719369919071,8.8314551,138.85,138.79,0.8588255]
[1719369919278,7.2041,138.81,138.79,0.8588255]
[1719369919881,8.54163316,138.84,138.79,0.8588255]
[1719369919882,7.2036,138.82,138.79,0.8588255]
[1719369920062,7.2032,138.83,138.79,0.8588255]
[1719369921562,7.2036,138.82,138.79,0.8588255]
[1719369924794,7.2042,138.81,138.79,0.8588255]
[1719369925592,8.54163316,138.84,138.79,0.8588255]
[1719369925794,7.2015,138.86,138.79,8.0635255]
[1719369925963,7.2015,138.86,138.79,0.8588255]
[1719369926365,7.2015,138.86,138.79,26.8588255]
[1719369926564,7.2011,138.87,138.8,7.2046]
[1719369926765,16.0325551,138.87,138.8,23.5117]
[1719369926997,7.2015,138.86,138.8,23.5117]
[1719369927375,7.2021,138.85,138.8,16.3071]
[1719369929188,7.2026,138.84,138.8,16.3071]
[1719369930171,21.34323105,138.86,138.8,16.3071]
[1719369930383,14.14123105,138.86,138.8,16.3071]
[1719369930687,7.202,138.85,138.8,16.3071]
[1719369930872,7.2025,138.84,138.8,16.3071]
[1719369932867,0.17,138.83,138.79,0.8588255]
[1719369933066,0.17,138.84,138.79,0.8588255]
[1719369933411,7.2032,138.83,138.79,0.8588255]
[1719369933771,7.3725,138.84,138.79,0.8588255]
[1719369933977,7.3721,138.85,138.79,8.0639255]
[1719369934173,7.2021,138.85,138.79,8.0639255]
[1719369934561,7.2021,138.85,138.79,0.8588255]
[1719369935173,21.34273105,138.86,138.79,34.0637255]
[1719369936498,14.14123105,138.86,138.8,18.0113]
[1719369936669,14.14123105,138.86,138.81,33.2036]
[1719369937599,14.14123105,138.86,138.81,7.2036]
[1719369937890,14.14123105,138.86,138.81,33.2036]
[1719369938698,14.14123105,138.86,138.81,26.0]
[1719369939584,21.34273105,138.86,138.8,51.2158]
[1719369942194,14.14123105,138.86,138.81,7.2038]
[1719369942395,8.8314551,138.9,138.82,26.0]
[1719369942607,0.17,138.89,138.82,26.0]
[1719369942898,7.3701,138.89,138.82,33.2034]
[1719369943794,7.2007,138.88,138.82,26.0]
[1719369944599,15.67178843,138.89,138.82,33.2035]
[1719369944782,15.67178843,138.89,138.82,48.4742]
[1719369944985,7.2005,138.88,138.82,22.4742]
[1719369945181,7.2011,138.87,138.82,15.2707]
[1719369945702,16.0320551,138.88,138.82,15.2707]
[1719369947177,8.8314551,138.88,138.82,22.474]
[1719369947702,8.8314551,138.88,138.82,48.474]
[1719369948203,14.50089772,138.93,138.86,26.0]
[1719369948439,14.50089772,138.93,138.88,26.0]
[1719369948574,14.50089772,138.93,138.88,33.2002]
[1719369948777,14.50089772,138.93,138.88,49.1513]
[1719369949391,14.50089772,138.93,138.88,15.9511]
[1719369949582,21.69879772,138.93,138.88,41.9511]
[1719369950508,21.69879772,138.93,138.88,15.9511]
[1719369950888,14.50089772,138.93,138.88,15.9511]
[1719369951616,7.2,138.89,138.85,16.3108]
[1719369951813,7.2,138.89,138.83,18.0066]
[1719369951989,7.2005,138.88,138.82,7.2032]
[1719369952302,8.8314551,138.89,138.81,23.5147]
[1719369952810,7.2006,138.88,138.81,23.5147]
[1719369953713,7.2012,138.87,138.81,16.3108]
[1719369955113,7.2006,138.88,138.81,23.5148]
[1719369955285,16.0315551,138.89,138.82,7.2034]
[1719369955493,0.17,138.88,138.84,7.2024]
[1719369955796,8.8314551,138.89,138.83,7.2029]
[1719369956985,16.0314551,138.89,138.83,7.2029]
[1719369957187,8.8314551,138.89,138.81,23.5147]
[1719369957387,0.34,138.88,138.81,7.2039]
[1719369957685,9.1714551,138.88,138.81,7.2039]
[1719369958423,16.3720551,138.88,138.81,7.2039]
[1719369959114,9.1714551,138.88,138.82,7.2035]
[1719369960206,8.8314551,138.88,138.83,7.2029]
[1719369960615,8.8314551,138.88,138.84,7.2025]
[1719369960922,7.199,138.91,138.84,7.2025]
[1719369961095,7.199,138.91,138.85,7.2019]
[1719369961294,7.3695,138.9,138.83,18.007]
[1719369961618,15.66097969,138.89,138.83,18.007]
[1719369961824,8.46067969,138.89,138.83,25.2097]
[1719369963128,8.46067969,138.89,138.86,7.2014]
[1719369963694,8.46067969,138.89,138.85,18.0048]
[1719369963911,8.46067969,138.89,138.85,25.2066]
[1719369964197,8.46067969,138.89,138.83,7.2026]
[1719369964625,8.46067969,138.89,138.84,7.2023]
[1719369964817,8.46067969,138.89,138.85,7.2017]
[1719369965608,8.46067969,138.89,138.84,25.2077]
[1719369967824,8.46067969,138.89,138.85,7.2019]
[1719369968498,15.6306,138.92,138.86,18.0031]
[1719369968932,8.8314551,138.94,138.84,73.3217]
[1719369969243,6.3206,138.96,138.92,7.1983]
[1719369969521,15.6306,138.97,138.94,7.1973]
[1719369969721,14.50089772,138.98,138.94,7.1973]
[1719369969930,14.50089772,138.98,138.93,7.1976]
[1719369970116,14.50089772,138.98,138.94,7.1973]
[1719369971530,14.50089772,138.98,138.93,25.1917]
[1719369974625,14.50089772,138.98,138.9,41.5582]
[1719369974843,9.0014551,138.97,138.87,33.1307]
[1719369975149,18.1613,138.96,138.85,6.4846]
[1719369975444,7.1969,138.95,138.88,7.2001]
[1719369975643,7.1969,138.95,138.89,7.1999]
[1719369975851,7.1978,138.93,138.86,18.0031]
[1719369976028,7.1974,138.94,138.87,7.2009]
[1719369976929,7.1978,138.93,138.86,25.2045]
[1719369977954,7.1972,138.95,138.87,7.2005]
[1719369978151,0.34,138.94,138.87,7.2005]
[1719369978725,7.5373,138.94,138.87,7.2005]
[1719369979336,7.1969,138.95,138.88,7.2003]
[1719369980347,7.1969,138.95,138.89,7.1998]
[1719369980950,0.34,138.96,138.89,7.1998]
[1719369981259,7.1969,138.95,138.89,7.1998]
[1719369982041,7.1969,138.95,138.88,25.201]
[1719369982253,7.1974,138.94,138.88,25.201]
[1719369982755,6.38021803,138.96,138.86,7.2013]
[1719369982926,6.38021803,138.96,138.85,18.0043]
[1719369982927,7.1984,138.92,138.85,25.2061]
[1719369983123,16.0292551,138.94,138.86,7.2014]
[1719369983324,7.198,138.93,138.86,7.2014]
[1719369984547,7.198,138.93,138.87,7.2009]
[1719369984743,7.198,138.93,138.86,7.2013]
[1719369984944,7.198,138.93,138.85,18.0043]
[1719369984945,22.3686,138.93,138.85,18.0043]
[1719369985147,7.1985,138.92,138.85,25.2063]
[1719369986356,22.3686,138.93,138.87,18.0018]
[1719369986661,21.784,138.96,138.9,7.199]
[1719369987248,28.9803,138.96,138.9,7.199]
[1719369987563,34.64974262,138.96,138.89,25.1988]
[1719369987941,27.45344262,138.96,138.9,7.1991]
[1719369988333,27.45344262,138.96,138.91,7.1987]
[1719369988534,27.45344262,138.96,138.92,7.1983]
[1719369988757,21.24534262,138.96,138.91,25.1958]
[1719369988928,21.24534262,138.96,138.91,17.997]
[1719369989760,28.44164262,138.96,138.9,7.1992]
[1719369990264,21.24534262,138.96,138.88,25.2006]
[1719369990441,21.24534262,138.96,138.88,18.0002]
[1719369990442,7.1977,138.94,138.88,18.0002]
[1719369990762,7.1969,138.95,138.88,25.2004]
[1719369991638,37.27329772,138.96,138.89,7.1999]
[1719369991861,37.27329772,138.96,138.9,7.1994]
[1719369992679,30.07679772,138.96,138.9,7.1994]
[1719369992968,37.27319772,138.96,138.9,7.1994]
[1719369994033,30.07679772,138.96,138.91,7.1987]
[1719369994233,13.70299292,138.99,138.84,57.8007]
[1719369994234,29.69659292,138.99,138.89,21.62]
[1719369994457,22.2017,138.99,138.95,7.1964]
[1719369994668,21.66304262,139.01,138.9,94.35]
[1719369997269,12.86314262,139.01,138.94,15.3744]
[1719369997478,21.69459772,139.01,138.94,7.1969]
[1719369998275,21.69459772,139.01,138.95,7.1968]
[1719369998570,14.50089772,139.01,138.95,7.1968]
[1719369999474,14.50089772,139.01,138.94,7.1972]
[1719369999680,7.1942,139.0,138.93,25.1915]
[1719370000478,21.69469772,139.01,138.94,7.1972]
[1719370001370,7.1943,139.0,138.93,25.1915]
[1719370001573,7.1949,138.99,138.93,17.9938]
[1719370001780,16.4424,138.98,138.93,17.9938]
[1719370002474,16.4424,138.98,138.93,25.1916]
[1719370002653,16.4424,138.98,138.93,17.9938]
[1719370002850,16.4424,138.98,138.92,7.1982]
[1719370003051,23.6377,138.98,138.91,7.1987]
[1719370003660,16.4424,138.98,138.92,7.1981]
[1719370004053,16.4424,138.98,138.93,7.1978]
[1719370005381,16.4424,138.98,138.95,7.1967]
[1719370005687,16.4424,138.98,138.94,17.9931]
[1719370005859,16.4424,138.98,138.94,25.1903]
[1719370006059,16.4424,138.98,138.94,17.9931]
[1719370006689,16.4424,138.98,138.94,25.1903]
[1719370007764,16.4424,138.98,138.94,17.9931]
[1719370007964,16.4424,138.98,138.92,7.1982]
[1719370009087,23.6377,138.98,138.92,7.1982]
[1719370009390,6.6581,138.97,138.91,25.1951]
[1719370009763,6.6581,138.97,138.92,7.1983]
[1719370014499,6.6581,138.97,138.93,7.1977]
[1719370015566,16.4424,138.98,138.88,6.6105]
[1719370015567,16.4424,138.98,138.88,28.2305]
[1719370015792,6.6255,139.15,139.02,21.62]
[1719370016110,21.8261,139.21,139.14,7.1869]
[1719370016404,21.8261,139.21,139.16,7.1855]
[1719370016569,21.8261,139.21,139.14,52.39]
[1719370016768,21.8261,139.21,139.19,17.9609]
[1719370016769,6.6255,139.21,139.19,17.9609]
[1719370016970,6.6255,139.21,139.15,35.9313]
[1719370016971,6.6255,139.21,139.17,7.1854]
[1719370017188,6.6255,139.21,139.18,7.1848]
[1719370017777,6.6255,139.21,139.15,25.151]
[1719370019298,6.6255,139.21,139.16,7.1858]
[1719370019485,6.6255,139.21,139.15,25.1513]
[1719370019887,6.6255,139.21,139.11,17.9701]
[1719370020200,13.8088,139.21,139.11,17.9701]
[1719370020392,6.6255,139.21,139.14,7.1868]
[1719370020577,0.17,139.2,139.14,7.1868]
[1719370020777,0.34,139.2,139.14,7.1868]
[1719370021004,0.34,139.2,139.1,35.9442]
[1719370021005,0.34,139.2,139.15,7.186]
[1719370021186,0.17,139.2,139.15,7.186]
[1719370021989,0.17,139.2,139.14,7.1868]
[1719370022176,0.17,139.2,139.13,17.9677]
[1719370022177,7.5239,139.2,139.13,17.9677]
[1719370022382,0.34,139.2,139.13,17.9677]
[1719370022585,0.34,139.2,139.14,7.1865]
[1719370023776,0.34,139.2,139.13,17.9677]
[1719370023973,0.17,139.2,139.13,17.9677]
[1719370024204,6.6255,139.21,139.16,7.1855]
[1719370024607,6.6255,139.21,139.17,7.1853]
[1719370024907,6.6255,139.21,139.15,17.9652]
[1719370025800,6.6255,139.21,139.15,25.1515]
[1719370027302,0.17,139.2,139.15,25.1515]
[1719370028777,0.34,139.2,139.15,25.1515]
[1719370029405,0.34,139.2,139.15,17.9652]